bitfinex-derivatives/quotes_ETHF0:USTF0_20260113
["timestamp","ask_amount","ask_price","bid_price","bid_amount"]
[1768264993969,1.0860277,3102.0,3101.0,3.13896169]
[1768264994164,1.0860277,3101.9,3101.0,3.13896169]
[1768264994462,3.16061599,3102.4,3100.9,0.00483574]
[1768264994662,3.94921825,3102.3,3100.9,0.00483574]
[1768264994865,3.94921825,3102.2,3100.9,0.00483574]
[1768264995070,1.08593761,3102.1,3100.9,0.00483574]
[1768264996072,3.94921825,3102.1,3100.9,0.00483574]
[1768264996368,1.08593761,3102.0,3100.9,0.00483574]
[1768264996572,1.08593761,3101.9,3100.9,0.00483574]
[1768264996769,1.08593761,3101.8,3100.9,0.00483574]
[1768264996971,2.86328064,3102.1,3100.9,0.00483574]
[1768264997168,1.08590022,3102.0,3100.9,0.00483574]
[1768264997369,1.08590022,3101.9,3100.9,0.00483574]
[1768264997570,1.08590022,3101.8,3100.9,0.00483574]
[1768264997766,2.86328064,3102.1,3100.9,0.00483574]
[1768264997973,3.94922775,3102.0,3100.9,0.00483574]
[1768264998276,3.94922775,3101.9,3100.9,0.00483574]
[1768264998469,3.94922775,3101.8,3100.9,0.00483574]
[1768264998668,3.94922775,3101.7,3100.9,0.00483574]
[1768264998870,1.08594711,3101.6,3100.9,0.00483574]
[1768265000873,2.86328064,3102.2,3100.9,0.00483574]
[1768265001070,3.94953319,3102.1,3100.9,0.00483574]
[1768265001275,1.08625255,3102.0,3100.9,0.00483574]
[1768265001476,1.08625255,3101.9,3100.9,0.00483574]
[1768265001678,1.08625255,3101.8,3100.9,0.00483574]
[1768265001876,1.08625255,3101.7,3100.9,0.00483574]
[1768265002076,2.86328064,3102.0,3100.9,0.00483574]
[1768265002374,1.0863406,3101.9,3100.9,0.00483574]
[1768265002574,1.0863406,3101.8,3100.9,0.00483574]
[1768265002775,1.0863406,3101.7,3100.9,0.00483574]
[1768265002977,4.10154996,3102.5,3100.9,0.00483574]
[1768265002978,2.86328064,3102.4,3100.9,0.00483574]
[1768265003175,1.1051896,3102.3,3100.9,0.00483574]
[1768265003374,2.86328064,3102.4,3100.9,0.00483574]
[1768265003375,1.1051896,3102.2,3100.9,0.00483574]
[1768265003575,1.1051896,3102.1,3100.9,0.00483574]
[1768265003777,1.1051896,3102.0,3100.9,0.00483574]
[1768265004085,1.1051896,3101.9,3100.9,0.00483574]
[1768265004383,1.1051896,3101.8,3100.9,0.00483574]
[1768265004673,1.1051896,3101.7,3100.9,0.00483574]
[1768265004879,2.86328064,3102.3,3100.9,0.00483574]
[1768265005080,1.1054661,3102.2,3100.9,0.00483574]
[1768265005280,2.86328064,3102.3,3100.9,0.00483574]
[1768265005281,1.1054661,3102.1,3100.9,0.00483574]
[1768265005579,1.1054661,3102.0,3100.9,0.00483574]
[1768265005780,2.86328064,3102.3,3100.9,0.00483574]
[1768265005781,1.1054661,3101.9,3100.9,0.00483574]
[1768265005983,1.1054661,3101.8,3100.9,0.00483574]
[1768265006180,1.1054661,3101.7,3100.9,0.00483574]
[1768265006481,1.10583504,3101.6,3100.9,0.00483574]
[1768265006684,2.86328064,3102.1,3100.9,0.00483574]
[1768265006882,1.10583533,3102.0,3100.9,0.00483574]
[1768265007178,1.10583533,3101.9,3100.9,0.00483574]
[1768265007483,1.10583533,3101.8,3100.9,0.00483574]
[1768265007679,2.86328064,3102.1,3100.9,0.00483574]
[1768265007680,1.10583533,3101.7,3100.9,0.00483574]
[1768265007880,1.10583533,3101.6,3100.9,0.00483574]
[1768265008077,2.86328064,3102.1,3100.9,0.00483574]
[1768265008277,1.10606042,3102.0,3100.9,0.00483574]
[1768265008574,1.10606042,3101.9,3100.9,0.00483574]
[1768265008774,1.10606042,3101.8,3100.9,0.00483574]
[1768265008974,1.10606042,3101.7,3100.9,0.00483574]
[1768265009179,1.10606042,3101.6,3100.9,0.00483574]
[1768265009379,2.86328064,3102.1,3100.9,0.00483574]
[1768265009683,1.1066637,3102.0,3100.9,0.00483574]
[1768265009884,1.1066637,3101.9,3100.9,0.00483574]
[1768265010075,1.1066637,3101.8,3100.9,0.00483574]
[1768265010275,1.1066637,3101.7,3100.9,0.00483574]
[1768265010475,1.1066637,3101.6,3100.9,0.00483574]
[1768265010676,2.86328064,3102.1,3100.9,0.00483574]
[1768265010877,1.10669324,3102.0,3100.9,0.00483574]
[1768265011082,1.10669324,3101.9,3100.9,0.00483574]
[1768265011284,1.10669324,3101.8,3100.9,0.00483574]
[1768265011484,1.10669324,3101.7,3100.9,0.00483574]
[1768265011684,1.10669324,3101.6,3100.9,0.00483574]
[1768265011983,5.17916441,3102.4,3100.9,0.00483574]
[1768265012191,2.86328064,3102.2,3100.9,0.00483574]
[1768265012386,2.86328064,3102.0,3100.9,0.00483574]
[1768265012585,1.10685533,3101.9,3100.9,0.00483574]
[1768265013191,3.97013597,3101.9,3100.9,0.00483574]
[1768265013375,1.10685533,3101.8,3100.9,0.00483574]
[1768265014290,2.86328064,3101.7,3100.9,0.00483574]
[1768265014493,1.10685533,3101.6,3100.9,0.00483574]
[1768265016289,2.75921187,3102.1,3100.9,1.00458727]
[1768265028397,1.11077021,3102.0,3100.9,1.00458727]
[1768265028601,1.11077021,3101.9,3100.9,1.00458727]
[1768265028792,1.11077021,3101.8,3100.9,1.00458727]
[1768265028990,1.11077021,3101.7,3100.9,1.00458727]
[1768265029294,1.11077021,3101.6,3100.9,1.00458727]
[1768265029594,1.11077021,3101.5,3100.9,1.00458727]
[1768265029794,2.75921187,3102.1,3100.9,1.00458727]
[1768265029795,1.11077021,3101.4,3100.9,1.00458727]
[1768265030003,2.75921187,3102.1,3100.9,1.00458727]
[1768265033311,2.75921187,3102.1,3100.9,0.00483574]
[1768265037312,2.75921187,3102.1,3101.1,0.99934837]
[1768265041213,2.31588377,3102.2,3101.5,0.99934837]
[1768265041523,5.07776183,3102.5,3101.5,0.99934837]
[1768265041818,1.54599174,3102.4,3101.5,0.99934837]
[1768265042016,1.12830418,3102.3,3101.5,0.99934837]
[1768265042310,1.12830418,3102.2,3101.5,0.99934837]
[1768265042513,1.12830418,3102.1,3101.5,0.99934837]
[1768265042715,1.12830418,3102.0,3101.5,0.99934837]
[1768265042914,1.12830418,3101.9,3101.5,0.99934837]
[1768265043111,1.12830418,3101.8,3101.5,0.99934837]
[1768265043319,5.07776183,3102.5,3101.5,0.99934837]
[1768265043508,2.76187806,3102.5,3101.7,0.99934837]
[1768265043713,0.00266619,3102.5,3102.1,0.99934837]
[1768265043907,0.00266619,3102.5,3102.0,0.99934837]
[1768265050121,4.06836985,3103.3,3102.4,0.99934837]
[1768265050617,4.06836985,3103.3,3102.5,0.00483574]
[1768265051210,4.07100056,3103.3,3102.5,0.00853332]
[1768265055428,1.11074864,3103.2,3102.5,0.00853332]
[1768265055629,1.11074864,3103.1,3102.5,0.00853332]
[1768265055927,1.11074864,3103.0,3102.5,0.00853332]
[1768265056128,1.11074864,3102.9,3102.5,0.00853332]
[1768265056328,4.07100056,3103.3,3102.5,0.00853332]
[1768265056529,1.11062129,3103.2,3102.5,0.00853332]
[1768265056731,1.11062129,3103.1,3102.5,0.00853332]
[1768265057026,1.11062129,3103.0,3102.5,0.00853332]
[1768265057230,1.11062129,3102.9,3102.5,0.00853332]
[1768265057428,4.07100056,3103.3,3102.5,0.00853332]
[1768265057627,1.11050009,3103.2,3102.5,0.00853332]
[1768265057827,1.11050009,3103.1,3102.5,0.00853332]
[1768265058028,1.11050009,3103.0,3102.5,0.00853332]
[1768265058226,1.11050009,3102.9,3102.5,0.00853332]
[1768265058428,4.07100056,3103.3,3102.5,0.00853332]
[1768265058625,1.1104312,3103.2,3102.5,0.00853332]
[1768265058826,1.1104312,3103.1,3102.5,0.00853332]
[1768265059031,1.1104312,3103.0,3102.5,0.00853332]
[1768265059332,1.1104312,3102.9,3102.5,0.00853332]
[1768265059534,4.07100056,3103.3,3102.5,0.00853332]
[1768265059736,1.11038961,3103.2,3102.5,0.00853332]
[1768265060033,1.11038961,3103.1,3102.5,0.00853332]
[1768265060236,1.11038961,3103.0,3102.5,0.00853332]
[1768265060431,1.11038961,3102.9,3102.5,0.00853332]
[1768265060632,4.07100056,3103.3,3102.5,0.00853332]
[1768265060834,1.11038275,3103.2,3102.5,0.00853332]
[1768265061029,1.11038275,3103.1,3102.5,0.00853332]
[1768265061325,1.11038275,3103.0,3102.5,0.00853332]
[1768265061531,1.11038275,3102.9,3102.5,0.00853332]
[1768265061724,4.07100056,3103.3,3102.5,0.00853332]
[1768265062026,1.11041027,3103.2,3102.5,0.00853332]
[1768265062222,1.11041027,3103.1,3102.5,0.00853332]
[1768265062429,1.11041027,3103.0,3102.5,0.00853332]
[1768265062628,1.11041027,3102.9,3102.5,0.00853332]
[1768265062836,4.07100056,3103.3,3102.5,0.00853332]
[1768265063030,1.11047227,3103.2,3102.5,0.00853332]
[1768265063236,1.11047227,3103.1,3102.5,0.00853332]
[1768265063433,1.11047227,3103.0,3102.5,0.00853332]
[1768265063631,1.11047227,3102.9,3102.5,0.00853332]
[1768265063834,4.07100056,3103.3,3102.5,0.00853332]
[1768265064037,1.11057024,3103.2,3102.5,0.00853332]
[1768265064240,1.11057024,3103.1,3102.5,0.00853332]
[1768265064536,1.11057024,3103.0,3102.5,0.00853332]
[1768265064737,1.11057024,3102.9,3102.5,0.00853332]
[1768265064940,4.07100056,3103.3,3102.5,0.00853332]
[1768265065145,1.11070588,3103.2,3102.5,0.00853332]
[1768265065330,1.11070588,3103.1,3102.5,0.00853332]
[1768265065532,1.11070588,3103.0,3102.5,0.00853332]
[1768265065826,1.11070588,3102.9,3102.5,0.00853332]
[1768265066029,4.07100056,3103.3,3102.5,0.00853332]
[1768265066231,1.11090996,3103.2,3102.5,0.00853332]
[1768265066432,1.11090996,3103.1,3102.5,0.00853332]
[1768265066632,1.11090996,3103.0,3102.5,0.00853332]
[1768265066834,1.11090996,3102.9,3102.5,0.00853332]
[1768265067032,4.07100056,3103.3,3102.5,0.00853332]
[1768265067235,1.11113939,3103.2,3102.5,0.00853332]
[1768265067432,1.11113939,3103.1,3102.5,0.00853332]
[1768265067635,1.11113939,3103.0,3102.5,0.00853332]
[1768265067835,1.11113939,3102.9,3102.5,0.00853332]
[1768265068043,1.11113939,3102.8,3102.5,0.00853332]
[1768265068339,4.07100056,3103.3,3102.5,0.00853332]
[1768265068542,1.11173066,3103.2,3102.5,0.00853332]
[1768265068739,1.11173066,3103.1,3102.5,0.00853332]
[1768265068941,1.11173066,3103.0,3102.5,0.00853332]
[1768265069137,1.11173066,3102.9,3102.5,0.00853332]
[1768265069338,1.11173066,3102.8,3102.5,0.00853332]
[1768265069640,4.07100056,3103.3,3102.5,0.00853332]
[1768265069843,1.11217208,3103.2,3102.5,0.00853332]
[1768265070042,1.11217208,3103.1,3102.5,0.00853332]
[1768265070241,1.11217208,3103.0,3102.5,0.00853332]
[1768265070445,1.11217208,3102.9,3102.5,0.00853332]
[1768265070749,4.07100056,3103.3,3102.5,1.00788169]
[1768265071044,0.00263071,3103.3,3102.5,1.00788169]
[1768265072448,0.00263071,3103.3,3102.7,0.99934837]
[1768265072946,0.00263071,3103.3,3102.9,0.99934837]
[1768265073249,4.06666448,3103.7,3102.9,0.99934837]
[1768265073546,4.06666448,3103.7,3102.7,0.99934837]
[1768265074343,4.07031527,3103.7,3102.7,0.99934837]
[1768265074545,4.07031527,3103.7,3102.5,0.00853332]
[1768265074746,2.10927683,3103.6,3102.6,0.99934837]
[1768265077448,2.10927683,3103.6,3102.5,0.00853332]
[1768265077652,2.10927683,3103.6,3102.7,0.99934837]
[1768265080755,2.10927683,3103.6,3102.5,0.00853332]
[1768265080955,2.10927683,3103.6,3102.7,0.99934837]
[1768265082857,1.10281703,3103.5,3102.7,0.99934837]
[1768265083153,1.10281703,3103.4,3102.7,0.99934837]
[1768265083356,1.10281703,3103.3,3102.7,0.99934837]
[1768265083555,1.10281703,3103.2,3102.7,0.99934837]
[1768265083755,1.10281703,3103.1,3102.7,0.99934837]
[1768265083956,2.10927683,3103.6,3102.7,0.99934837]
[1768265084160,1.10279492,3103.5,3102.7,0.99934837]
[1768265084348,1.10279492,3103.4,3102.7,0.99934837]
[1768265084549,1.10279492,3103.3,3102.7,0.99934837]
[1768265084749,1.10279492,3103.2,3102.7,0.99934837]
[1768265085051,1.10279492,3103.1,3102.7,0.99934837]
[1768265085348,0.00365079,3103.7,3102.7,0.99934837]
[1768265085549,1.1027809,3103.6,3102.7,0.99934837]
[1768265085758,1.1027809,3103.5,3102.7,0.99934837]
[1768265085956,1.1027809,3103.4,3102.5,0.00853332]
[1768265086160,1.1027809,3103.3,3102.6,0.99934837]
[1768265086355,1.1027809,3103.2,3102.6,0.99934837]
[1768265086555,1.1027809,3103.1,3102.6,0.99934837]
[1768265086746,2.11292762,3103.7,3102.6,0.99934837]
[1768265086950,1.10279221,3103.6,3102.6,0.99934837]
[1768265087158,1.10279221,3103.5,3102.6,0.99934837]
[1768265087354,1.10279221,3103.4,3102.6,0.99934837]
[1768265087558,1.10279221,3103.3,3102.6,0.99934837]
[1768265087758,1.10279221,3103.2,3102.6,0.99934837]
[1768265087955,1.10279221,3103.1,3102.6,0.99934837]
[1768265088155,2.11292762,3103.7,3102.6,0.99934837]
[1768265088356,1.10283227,3103.6,3102.6,0.99934837]
[1768265088558,1.10283227,3103.5,3102.6,0.99934837]
[1768265088764,1.10283227,3103.4,3102.6,0.99934837]
[1768265089062,1.10283227,3103.3,3102.6,0.99934837]
[1768265089264,1.10283227,3103.2,3102.6,0.99934837]
[1768265089466,1.10283227,3103.1,3102.6,0.99934837]
[1768265089762,2.11292762,3103.7,3102.6,0.99934837]
[1768265089962,1.10286099,3103.6,3102.6,0.99934837]
[1768265090162,1.10286099,3103.5,3102.6,0.99934837]
[1768265090462,1.10286099,3103.4,3102.6,0.99934837]
[1768265090657,1.10286099,3103.3,3102.6,0.99934837]
[1768265090856,2.11292762,3103.7,3102.6,0.99934837]
[1768265090857,1.10286099,3103.2,3102.6,0.99934837]
[1768265091056,1.10286099,3103.1,3102.6,0.99934837]
[1768265091255,2.11292762,3103.7,3102.6,0.99934837]
[1768265091457,1.10294449,3103.6,3102.6,0.99934837]
[1768265091657,1.10294449,3103.5,3102.6,0.99934837]
[1768265091860,1.10294449,3103.4,3102.6,0.99934837]
[1768265092062,1.10294449,3103.3,3102.7,0.99934837]
[1768265092257,1.10294449,3103.2,3102.7,0.99934837]
[1768265092459,1.10294449,3103.1,3102.7,0.99934837]
[1768265092660,2.11292762,3103.7,3102.7,0.99934837]
[1768265092857,1.10171034,3103.6,3102.7,0.99934837]
[1768265093058,1.10171034,3103.5,3102.7,0.99934837]
[1768265093258,1.10171034,3103.4,3102.7,0.99934837]
[1768265093458,1.10171034,3103.3,3102.7,0.99934837]
[1768265093667,1.10171034,3103.2,3102.7,0.99934837]
[1768265093866,1.10171034,3103.1,3102.7,0.99934837]
[1768265094066,2.11292762,3103.7,3102.7,0.99934837]
[1768265094257,1.52764167,3103.6,3102.7,0.99934837]
[1768265094459,1.10184829,3103.5,3102.7,0.99934837]
[1768265094660,1.10184829,3103.4,3102.7,0.99934837]
[1768265094960,1.10184829,3103.3,3102.7,0.99934837]
[1768265095161,1.10184829,3103.2,3102.7,0.99934837]
[1768265095461,1.10184829,3103.1,3102.7,0.99934837]
[1768265095666,1.10184829,3103.0,3102.7,0.99934837]
[1768265095867,2.11292762,3103.7,3102.7,0.99934837]
[1768265096068,1.5278142,3103.6,3102.7,0.99934837]
[1768265096271,1.10195414,3103.5,3102.7,0.99934837]
[1768265096467,1.10195414,3103.4,3102.7,0.99934837]
[1768265096671,1.10195414,3103.3,3102.7,0.99934837]
[1768265096965,1.10195414,3103.2,3102.7,0.99934837]
[1768265097158,1.10195414,3103.1,3102.7,0.99934837]
[1768265097358,1.10195414,3103.0,3102.7,0.99934837]
[1768265097554,2.11292762,3103.7,3102.7,0.99934837]
[1768265097776,1.52821331,3103.6,3102.7,0.99934837]
[1768265097959,1.10223309,3103.5,3102.7,0.99934837]
[1768265098160,1.10223309,3103.4,3102.7,0.99934837]
[1768265098356,1.10223309,3103.3,3102.7,0.99934837]
[1768265098561,1.10223309,3103.2,3102.7,0.99934837]
[1768265098761,1.10223309,3103.1,3102.7,0.99934837]
[1768265098970,1.10223309,3103.0,3102.7,0.99934837]
[1768265099167,2.11292762,3103.7,3102.7,0.99934837]
[1768265099467,1.52835052,3103.6,3102.5,0.00853332]
[1768265099668,1.10219582,3103.5,3102.5,0.00853332]
[1768265099869,1.10219582,3103.4,3102.5,0.00853332]
[1768265100070,1.10219582,3103.3,3102.5,0.00853332]
[1768265100269,1.10219582,3103.2,3102.5,0.00853332]
[1768265100473,0.00365079,3103.7,3102.5,2.06035274]
[1768265100671,0.42627163,3103.6,3102.5,2.06035274]
[1768265100872,0.00365079,3103.7,3102.5,2.06035274]
[1768265101069,0.4262619,3103.6,3102.5,2.06035274]
[1768265101272,2.31588377,3103.9,3102.5,2.06035274]
[1768265101273,2.31588377,3104.0,3103.1,0.99834868]
[1768265101473,2.31588377,3104.4,3103.1,3.0501681]
[1768265101775,2.53547991,3104.3,3102.7,3.0501681]
[1768265101969,0.42620308,3104.2,3102.7,3.0501681]
[1768265102165,2.10927683,3104.0,3102.5,0.00853332]
[1768265102364,2.10927683,3103.8,3102.5,0.00853332]
[1768265112592,3.08080231,3103.7,3102.5,0.00853332]
[1768265112790,1.05786351,3103.6,3102.5,0.00853332]
[1768265117295,2.99093887,3103.6,3102.5,0.00853332]
[1768265117498,1.05786351,3103.5,3102.5,0.00853332]
[1768265117700,2.99093887,3103.5,3102.5,0.00853332]
[1768265117887,1.05786351,3103.4,3102.5,0.00853332]
[1768265118497,1.93307536,3103.3,3102.5,0.00853332]
[1768265118693,1.05786351,3103.2,3102.5,0.00853332]
[1768265122503,0.00298247,3104.0,3102.6,3.03724346]
[1768265122706,1.51023976,3103.9,3102.6,3.03724346]
[1768265122902,1.08434014,3103.8,3102.6,3.03724346]
[1768265123199,1.08434014,3103.7,3102.6,3.03724346]
[1768265123403,1.08434014,3103.6,3102.6,3.03724346]
[1768265123700,1.08434014,3103.5,3102.6,3.03724346]
[1768265123899,0.00298247,3104.0,3102.6,3.03724346]
[1768265124099,1.08022686,3103.9,3102.6,3.03724346]
[1768265124302,1.08022686,3103.8,3102.6,3.03724346]
[1768265124593,0.00298247,3104.0,3102.6,3.03724346]
[1768265124594,1.08022686,3103.7,3102.6,3.03724346]
[1768265124798,1.08022686,3103.6,3102.6,3.03724346]
[1768265125099,1.08022686,3103.5,3102.6,3.03724346]
[1768265125397,0.00298247,3104.0,3102.6,3.03724346]
[1768265125598,1.08022737,3103.9,3102.6,3.03724346]
[1768265125801,1.08022737,3103.8,3102.6,3.03724346]
[1768265126000,1.08022737,3103.7,3102.6,3.03724346]
[1768265126201,1.08022737,3103.6,3102.6,3.03724346]
[1768265126401,1.08022737,3103.5,3102.6,3.03724346]
[1768265126601,0.00298247,3104.0,3102.6,3.03724346]
[1768265126802,1.08024643,3103.9,3102.6,3.03724346]
[1768265127100,1.08024643,3103.8,3102.6,3.03724346]
[1768265127297,1.08024643,3103.7,3102.6,3.03724346]
[1768265127601,1.08024643,3103.6,3102.6,3.03724346]
[1768265127796,1.08024643,3103.5,3102.6,3.03724346]
[1768265127999,0.00298247,3104.0,3102.6,3.03724346]
[1768265128199,1.08027509,3103.9,3102.6,3.03724346]
[1768265128399,1.08027509,3103.8,3102.6,3.03724346]
[1768265128598,1.08027509,3103.7,3102.6,3.03724346]
[1768265128799,1.08027509,3103.6,3102.6,3.03724346]
[1768265129004,0.00298247,3104.0,3102.6,3.03724346]
[1768265129302,1.08030167,3103.9,3102.6,3.03724346]
[1768265129497,1.08030167,3103.8,3102.6,3.03724346]
[1768265129698,1.08030167,3103.7,3102.6,3.03724346]
[1768265129899,1.08030167,3103.6,3102.6,3.03724346]
[1768265130098,0.00298247,3104.0,3102.6,3.03724346]
[1768265130297,1.08032251,3103.9,3102.6,3.03724346]
[1768265130498,1.08032251,3103.8,3102.6,3.03724346]
[1768265130695,1.08032251,3103.7,3102.6,3.03724346]
[1768265130898,1.08032251,3103.6,3102.6,3.03724346]
[1768265131098,0.00298247,3104.0,3102.6,3.03724346]
[1768265131298,1.08030305,3103.9,3102.6,3.03724346]
[1768265131499,1.08030305,3103.8,3102.6,3.03724346]
[1768265131706,1.08030305,3103.7,3102.6,3.03724346]
[1768265131906,1.08030305,3103.6,3102.6,3.03724346]
[1768265132105,0.00298247,3104.0,3102.6,3.03724346]
[1768265132306,1.08036713,3103.9,3102.6,3.03724346]
[1768265132508,1.08036713,3103.8,3102.6,3.03724346]
[1768265132807,1.08036713,3103.7,3102.6,3.03724346]
[1768265133109,1.08036713,3103.6,3102.7,2.03889478]
[1768265133301,0.00298247,3104.0,3102.7,2.03889478]
[1768265143112,0.00298247,3104.0,3103.0,2.90800059]
[1768265145317,1.07165025,3103.9,3103.0,2.90800059]
[1768265145515,0.00298247,3104.0,3103.0,2.90800059]
[1768265145722,1.07165025,3103.9,3103.0,2.90800059]
[1768265146017,0.00298247,3104.0,3102.8,0.16133]
[1768265146212,1.07165089,3103.9,3102.8,0.16133]
[1768265146416,0.00298247,3104.0,3102.8,0.16133]
[1768265146614,1.07159947,3103.9,3102.8,0.16133]
[1768265146817,0.00298247,3104.0,3102.8,0.16133]
[1768265147111,1.07159918,3103.9,3102.8,0.16133]
[1768265147313,0.00298247,3104.0,3102.8,1.49633]
[1768265147515,1.07156879,3103.9,3102.8,1.49633]
[1768265147718,0.00298247,3104.0,3102.8,1.49633]
[1768265147909,1.07156865,3103.9,3102.8,1.49633]
[1768265148217,0.00298247,3104.0,3102.8,1.49633]
[1768265148417,1.07156676,3103.9,3102.8,1.49633]
[1768265148608,0.00298247,3104.0,3102.8,1.49633]
[1768265148810,1.07156665,3103.9,3102.8,1.49633]
[1768265149105,0.00298247,3104.0,3102.8,1.49633]
[1768265149306,1.07166788,3103.9,3102.8,1.49633]
[1768265149519,0.00298247,3104.0,3102.8,1.49633]
[1768265149719,1.07166788,3103.9,3102.8,1.49633]
[1768265149927,0.00298247,3104.0,3102.8,3.40598191]
[1768265150218,1.07166759,3103.9,3102.8,3.40598191]
[1768265150419,0.00298247,3104.0,3102.8,3.40598191]
[1768265150620,1.07182354,3103.9,3102.8,3.40598191]
[1768265150812,0.00298247,3104.0,3102.8,3.40598191]
[1768265151012,1.07182369,3103.9,3102.8,3.40598191]
[1768265151213,1.07182369,3103.8,3102.8,3.40598191]
[1768265151414,0.00298247,3104.0,3102.8,3.40598191]
[1768265151613,1.07203593,3103.9,3102.8,3.40598191]
[1768265151815,1.07203593,3103.8,3102.8,3.40598191]
[1768265152021,0.00298247,3104.0,3102.8,3.40598191]
[1768265152215,1.07231881,3103.9,3102.8,3.40598191]
[1768265152415,1.07231881,3103.8,3102.8,3.40598191]
[1768265152612,0.00298247,3104.0,3102.8,3.40598191]
[1768265152811,1.07231881,3103.9,3102.8,3.40598191]
[1768265153013,1.07231881,3103.8,3102.8,3.40598191]
[1768265153211,0.00298247,3104.0,3102.8,3.40598191]
[1768265153514,1.07233157,3103.9,3102.8,3.40598191]
[1768265153822,1.07233157,3103.8,3102.8,2.07098191]
[1768265154018,0.00298247,3104.0,3102.8,3.40598191]
[1768265154217,1.07233845,3103.9,3102.8,3.40598191]
[1768265154419,1.07233845,3103.8,3102.8,3.40598191]
[1768265154720,0.00298247,3104.0,3102.8,3.40598191]
[1768265155017,1.07233816,3103.9,3102.8,3.40598191]
[1768265155216,1.07233816,3103.8,3102.8,3.40598191]
[1768265155419,0.00298247,3104.0,3102.8,3.40598191]
[1768265155619,1.07235394,3103.9,3102.8,3.40598191]
[1768265155918,1.07235394,3103.8,3102.8,3.40598191]
[1768265156108,0.00298247,3104.0,3102.8,3.40598191]
[1768265156313,1.07237567,3103.9,3102.8,3.40598191]
[1768265156522,1.07237567,3103.8,3103.0,1.90965191]
[1768265156817,0.00298247,3104.0,3103.0,1.90965191]
[1768265157013,1.07237538,3103.9,3103.0,1.90965191]
[1768265157211,1.07237538,3103.8,3103.0,1.90965191]
[1768265157413,0.00298247,3104.0,3103.0,1.90965191]
[1768265157621,1.07240568,3103.9,3103.0,1.90965191]
[1768265157817,1.07240568,3103.8,3103.0,1.90965191]
[1768265158018,0.00298247,3104.0,3103.0,1.90965191]
[1768265158316,1.07241516,3103.9,3103.0,1.90965191]
[1768265158520,0.00298247,3104.0,3103.0,1.90965191]
[1768265158718,1.0723832,3103.9,3103.0,1.90965191]
[1768265158922,0.00298247,3104.0,3103.0,1.90965191]
[1768265159120,1.06836843,3103.9,3103.0,1.90965191]
[1768265159319,0.00298247,3104.0,3103.0,1.90965191]
[1768265159524,1.06836583,3103.9,3103.0,1.90965191]
[1768265159713,0.00298247,3104.0,3103.0,1.90965191]
[1768265159912,1.06836583,3103.9,3103.0,1.90965191]
[1768265160113,0.00298247,3104.0,3103.0,1.90965191]
[1768265160321,1.06493086,3103.9,3103.0,1.90965191]
[1768265160515,0.00298247,3104.0,3103.0,1.90965191]
[1768265160715,1.06493101,3103.9,3103.0,1.90965191]
[1768265161020,0.00298247,3104.0,3103.0,1.90965191]
[1768265161221,1.06495473,3103.9,3103.0,1.90965191]
[1768265161417,0.00298247,3104.0,3103.4,0.99790353]
[1768265161623,1.0649426,3103.9,3103.4,0.99790353]
[1768265161819,0.00298247,3104.0,3103.4,0.99790353]
[1768265162024,1.06494523,3103.9,3103.4,0.99790353]
[1768265162223,1.06494523,3103.8,3103.4,0.99790353]
[1768265162522,0.00298247,3104.0,3103.4,0.99790353]
[1768265162722,1.06912493,3103.9,3103.4,0.99790353]
[1768265162917,1.06912493,3103.8,3103.4,0.99790353]
[1768265163121,0.00298247,3104.0,3103.4,0.99790353]
[1768265163321,1.06916611,3103.9,3103.4,0.99790353]
[1768265163520,1.06916611,3103.8,3103.4,0.99790353]
[1768265163821,0.00298247,3104.0,3103.4,0.99790353]
[1768265164118,1.06916626,3103.9,3103.4,0.99790353]
[1768265164319,1.06916626,3103.8,3103.4,0.99790353]
[1768265164524,0.00298247,3104.0,3103.4,2.75228662]
[1768265164716,1.06918588,3103.9,3103.4,2.75228662]
[1768265164925,1.06918588,3103.8,3103.4,2.75228662]
[1768265165223,0.00298247,3104.0,3103.4,0.99790353]
[1768265165418,1.06858105,3103.9,3103.4,0.99790353]
[1768265165622,1.06858105,3103.8,3103.4,0.99790353]
[1768265165820,0.00298247,3104.0,3103.4,0.99790353]
[1768265166021,1.06858111,3103.9,3103.4,0.99790353]
[1768265166220,1.06858111,3103.8,3103.4,0.99790353]
[1768265166517,0.00298247,3104.0,3103.4,0.99790353]
[1768265166721,1.06691347,3103.9,3103.4,0.99790353]
[1768265166918,1.06691347,3103.8,3103.4,0.99790353]
[1768265167125,0.00298247,3104.0,3103.4,0.99790353]
[1768265167428,1.06522029,3103.9,3103.4,0.99790353]
[1768265167629,1.06522029,3103.8,3103.4,0.99790353]
[1768265167924,0.00298247,3104.0,3103.4,0.99790353]
[1768265168115,1.06522011,3103.9,3103.4,0.99790353]
[1768265168311,1.06522011,3103.8,3103.4,0.99790353]
[1768265168515,0.00298247,3104.0,3103.4,0.99790353]
[1768265168726,1.06358282,3103.9,3103.4,0.99790353]
[1768265168930,0.00298247,3104.0,3103.4,0.99790353]
[1768265169127,1.80663533,3104.6,3103.6,0.99790353]
[1768265169325,0.4300302,3104.5,3103.8,0.99790353]
[1768265169520,2.31588377,3104.9,3103.8,0.99790353]
[1768265169722,0.42997516,3104.8,3103.7,0.99790353]
[1768265169923,0.42997516,3104.7,3103.7,0.99790353]
[1768265170226,0.42997507,3104.6,3104.0,0.00483574]
[1768265170618,0.00368739,3104.7,3104.0,0.00483574]
[1768265171828,0.42992781,3104.6,3104.0,0.00483574]
[1768265172027,0.00368739,3104.7,3104.0,0.00483574]
[1768265172228,0.42992781,3104.6,3104.0,0.00483574]
[1768265172438,0.00368739,3104.7,3104.0,0.00483574]
[1768265172622,0.42988363,3104.6,3104.0,0.00483574]
[1768265172826,0.00368739,3104.7,3104.0,0.00483574]
[1768265173023,0.42988357,3104.6,3104.0,0.00483574]
[1768265173333,0.00368739,3104.7,3104.0,0.00483574]
[1768265173535,0.42982122,3104.6,3104.0,0.00483574]
[1768265173832,0.00368739,3104.7,3104.0,0.00483574]
[1768265174128,0.42982122,3104.6,3104.0,0.00483574]
[1768265174334,0.00368739,3104.7,3104.0,0.00483574]
[1768265174531,0.42977129,3104.6,3104.0,0.00483574]
[1768265174834,0.00368739,3104.7,3104.0,0.00483574]
[1768265175029,0.42977129,3104.6,3104.0,0.00483574]
[1768265175222,0.00368739,3104.7,3104.0,0.00483574]
[1768265175419,0.42973051,3104.6,3104.0,0.00483574]
[1768265175620,0.00368739,3104.7,3104.0,0.00483574]
[1768265175820,0.42973051,3104.6,3104.0,0.00483574]
[1768265176037,0.00368739,3104.7,3104.0,0.00483574]
[1768265176232,0.42973045,3104.6,3104.0,0.00483574]
[1768265176434,0.00368739,3104.7,3104.0,0.00483574]
[1768265177334,0.4296702,3104.6,3104.0,0.00483574]
[1768265177529,0.00368739,3104.7,3104.0,0.00483574]
[1768265177730,0.4296702,3104.6,3104.0,0.00483574]
[1768265177930,0.00368739,3104.7,3104.0,0.00483574]
[1768265178130,0.42967014,3104.6,3104.0,0.00483574]
[1768265178337,0.00368739,3104.7,3104.0,0.00483574]
[1768265178837,0.4296488,3104.6,3104.0,0.00483574]
[1768265179038,0.00368739,3104.7,3104.0,0.00483574]
[1768265181140,1.053967,3104.6,3104.0,0.00483574]
[1768265181339,1.053967,3104.5,3104.0,0.00483574]
[1768265181540,1.053967,3104.4,3104.0,0.00483574]
[1768265181742,1.053967,3104.3,3104.0,0.00483574]